[Event "AUT-ch Open 2020"]
[Site "Graz"]
[Date "2020.02.14"]
[Round "1.1"]
[White "Menezes, Christoph"]
[Black "Nieminen, Kari"]
[Result "1-0"]
[ECO "A14"]
[WhiteElo "2394"]
[BlackElo "2112"]
[Annotator "RC"]
[PlyCount "55"]
[EventDate "2020.02.14"]
[EventType "swiss"]
[EventCountry "AUT"]
[SourceTitle "playchess.com"]
[Source "ChessBase"]
[SourceQuality "1"]
[TimeControl "40/5400+30:1800+30"]

1. Nf3 {[%emt 0:00:00]} d5 {[%emt 0:00:00]} 2. g3 {[%emt 0:00:15]} Nf6 {[%emt 0:01:14]} 3. Bg2 {[%emt 0:00:49]} e6 {[%emt 0:01:52]} 4. O-O {[%emt 0:00:30]} Be7 {[%emt 0:00:28]} 5. c4 {[%emt 0:00:53]} O-O {[%emt 0:00:54]} 6. b3 {[%emt 0:01:18]} b6 {[%emt 0:01:19]} 7. Bb2 {[%emt 0:00:38]} Bb7 {[%emt 0:00:13]} 8. e3 {[%emt 0:00:28]} Nbd7 {[%emt 0:01:19]} 9. Nc3 {[%emt 0:00:33]} a6 {[%emt 0:02:47]} 10. Qe2 {[%emt 0:06:13]} c5 {[%emt 0:34:23]} 11. Rfd1 {[%emt 0:06:12]} Qb8 {[%emt 0:08:08]} 12. cxd5 {[%emt 0:08:09]} Nxd5 {[%emt 0:05:43]} 13. Nxd5 {[%emt 0:00:57]} Bxd5 {[%emt 0:00:11]} 14. e4 {[%emt 0:00:42]} Bc6 {[%emt 0:00:05]} 15. d4 {[%emt 0:01:10]} Re8 {[%emt 0:06:02]} 16. dxc5 {[%emt 0:07:42]} bxc5 {[%emt 0:06:15]} 17. Nd2 {[%emt 0:06:30]} Ne5 {[%emt 0:11:45]} 18. a4 {[%emt 0:05:33]} Rd8 {[%emt 0:02:06]} 19. Bc3 {[%emt 0:02:37]} a5 {[%emt 0:02:32]} 20. f4 {[%emt 0:09:40]} Nd3 {[%emt 0:01:00]} 21. Rab1 {[%emt 0:04:58]} Qc7 {[%emt 0:03:29]} 22. Nc4 {[%emt 0:02:08]} Nb4 {[%emt 0:00:08]} 23. Be5 {[%emt 0:02:46]} Qa7 {[%emt 0:00:20]} 24. Qg4 {[%emt 0:04:03]} g6 {[%emt 0:02:02]} 25. h4 {[%emt 0:08:56]} Nc2 {[%emt 0:02:04]} 26. h5 {[%emt 0:02:06]} Nd4 {[%emt 0:02:16]} 27. hxg6 {[%emt 0:00:29]} hxg6 {[%emt 0:00:58]} 28. Qh3 {[%emt 0:00:41]} 1-0

[Event "AUT-ch Open 2020"]
[Site "Graz"]
[Date "2020.02.14"]
[Round "1.4"]
[White "Megalios, Konstantinos"]
[Black "Maxion, Dirk"]
[Result "*"]
[ECO "B12"]
[WhiteElo "2390"]
[BlackElo "2098"]
[Annotator "RC"]
[PlyCount "22"]
[EventDate "2020.02.14"]
[EventType "swiss"]
[EventCountry "AUT"]
[SourceTitle "playchess.com"]
[Source "ChessBase"]
[SourceQuality "1"]
[TimeControl "40/5400+30:1800+30"]

1. e4 {[%emt 0:00:00]} c6 {[%emt 0:00:00]} 2. d4 {[%emt 1:31:00]} d5 {[%emt 0:00:00]} 3. e5 {[%emt 0:00:00]} c5 {[%emt 0:00:00]} 4. dxc5 {[%emt 0:00:05]} e6 {[%emt 0:00:00]} 5. a3 {[%emt 0:00:31]} Bxc5 {[%emt 0:00:00]} 6. b4 {[%emt 0:00:22]} Bb6 {[%emt 0:00:00]} 7. Nf3 {[%emt 0:01:01]} Ne7 {[%emt 0:00:01]} 8. Bb2 {[%emt 1:32:01]} a5 {[%emt 0:00:20]} 9. b5 {[%emt 0:06:35]} Nd7 {[%emt 0:00:55]} 10. Bd3 {[%emt 0:02:21]} Nc5 {[%emt 0:00:40]} 11. a4 {[%emt 0:00:31]} Ng6 {[%emt 0:01:07]} *

[Event "AUT-ch Open 2020"]
[Site "Graz"]
[Date "2020.02.14"]
[Round "1.7"]
[White "Zoernpfenning, Siegfried"]
[Black "Tomazini, Zan"]
[Result "*"]
[ECO "C18"]
[WhiteElo "2094"]
[BlackElo "2386"]
[Annotator "RC"]
[PlyCount "27"]
[EventDate "2020.02.14"]
[EventType "swiss"]
[EventCountry "AUT"]
[SourceTitle "playchess.com"]
[Source "ChessBase"]
[SourceQuality "1"]
[TimeControl "40/5400+30:1800+30"]

1. e4 {[%emt 0:00:00]} e6 {[%emt 0:00:00]} 2. d4 {[%emt 0:00:00]} d5 {[%emt 1:31:00]} 3. Nc3 {[%emt 0:00:11]} Bb4 {[%emt 0:00:00]} 4. e5 {[%emt 1:31:49]} c5 {[%emt 0:00:08]} 5. a3 {[%emt 0:00:07]} Bxc3+ {[%emt 0:00:10]} 6. bxc3 {[%emt 0:00:02]} Qa5 {[%emt 0:00:16]} 7. Bd2 {[%emt 0:00:07]} Qa4 {[%emt 0:00:07]} 8. Qg4 {[%emt 0:00:08]} Kf8 {[%emt 0:00:09]} 9. h4 {[%emt 0:01:42]} Ne7 {[%emt 0:02:51]} 10. h5 {[%emt 0:02:25]} h6 {[%emt 0:00:36]} 11. Qd1 {[%emt 1:30:32]} b6 {[%emt 0:00:41]} 12. Nf3 {[%emt 0:00:27]} Ba6 {[%emt 0:02:17]} 13. dxc5 {[%emt 0:00:27]} Bxf1 {[%emt 1:29:15]} 14. Kxf1 {[%emt 0:00:01]} *

[Event "AUT-ch Open 2020"]
[Site "Graz"]
[Date "2020.02.14"]
[Round "1.11"]
[White "Magold, Filip"]
[Black "Barp, Alberto"]
[Result "*"]
[ECO "A90"]
[WhiteElo "2086"]
[BlackElo "2368"]
[Annotator "RC"]
[PlyCount "20"]
[EventDate "2020.02.14"]
[EventType "swiss"]
[EventCountry "AUT"]
[SourceTitle "playchess.com"]
[Source "ChessBase"]
[SourceQuality "1"]
[TimeControl "40/5400+30:1800+30"]

1. d4 {[%emt 0:00:00]} e6 {[%emt 0:00:00]} 2. c4 {[%emt 0:01:17]} f5 {[%emt 1:31:00]} 3. g3 {[%emt 0:00:38]} Nf6 {[%emt 0:00:04]} 4. Bg2 {[%emt 0:00:09]} c6 {[%emt 0:00:59]} 5. Nf3 {[%emt 0:02:02]} d5 {[%emt 0:00:04]} 6. O-O {[%emt 1:28:54]} Bd6 {[%emt 0:00:05]} 7. b3 {[%emt 0:00:38]} Qe7 {[%emt 0:00:04]} 8. Bb2 {[%emt 0:01:14]} b6 {[%emt 0:02:25]} 9. Nbd2 {[%emt 1:28:22]} O-O {[%emt 0:01:40]} 10. Ne5 {[%emt 0:02:27]} Bb7 {[%emt 0:00:09]} *

[Event "AUT-ch Open 2020"]
[Site "Graz"]
[Date "2020.02.14"]
[Round "1.14"]
[White "Leisch, Lukas"]
[Black "Schloffer, Jasmin-Denise"]
[Result "*"]
[ECO "D02"]
[WhiteElo "2352"]
[BlackElo "2080"]
[Annotator "RC"]
[PlyCount "24"]
[EventDate "2020.02.14"]
[EventType "swiss"]
[EventCountry "AUT"]
[SourceTitle "playchess.com"]
[Source "ChessBase"]
[SourceQuality "1"]
[TimeControl "40/5400+30:1800+30"]

1. d4 {[%emt 0:00:00]} Nf6 {[%emt 0:00:00]} 2. Bf4 {[%emt 0:00:00]} d5 {[%emt 1:31:00]} 3. e3 {[%emt 0:00:00]} e6 {[%emt 0:00:16]} 4. Nd2 {[%emt 0:00:31]} c5 {[%emt 0:00:50]} 5. c3 {[%emt 0:00:36]} Bd6 {[%emt 0:00:14]} 6. Bg3 {[%emt 0:00:45]} Qc7 {[%emt 0:01:34]} 7. Ngf3 {[%emt 0:01:35]} Nbd7 {[%emt 0:00:22]} 8. Bd3 {[%emt 0:02:12]} O-O {[%emt 0:00:41]} 9. O-O {[%emt 0:01:20]} Bxg3 {[%emt 0:00:15]} 10. hxg3 {[%emt 0:00:28]} e5 {[%emt 0:00:13]} 11. dxe5 {[%emt 0:02:40]} Nxe5 {[%emt 0:00:10]} 12. Nxe5 {[%emt 0:00:07]} Qxe5 {[%emt 0:00:06]} *

[Event "AUT-ch Open 2020"]
[Site "Graz"]
[Date "2020.02.14"]
[Round "1.23"]
[White "Blohberger, Felix"]
[Black "Simonetto, Andrea"]
[Result "1/2-1/2"]
[ECO "B10"]
[WhiteElo "2448"]
[BlackElo "2158"]
[Annotator "RC"]
[PlyCount "104"]
[EventDate "2020.02.14"]
[EventType "swiss"]
[EventCountry "AUT"]
[SourceTitle "playchess.com"]
[Source "ChessBase"]
[SourceQuality "1"]
[TimeControl "40/5400+30:1800+30"]

1. e4 {[%emt 0:00:00]} c6 {[%emt 0:00:00]} 2. Nf3 {[%emt 0:00:00]} d5 {[%emt 0:00:00]} 3. Nc3 {[%emt 0:00:00]} Nf6 {[%emt 0:00:00]} 4. e5 {[%emt 0:00:27]} Ne4 {[%emt 0:00:00]} 5. Ne2 {[%emt 0:00:45]} Qb6 {[%emt 0:00:02]} 6. d4 {[%emt 0:00:07]} e6 {[%emt 0:00:26]} 7. Ng3 {[%emt 0:00:07]} c5 {[%emt 0:00:15]} 8. c3 {[%emt 0:00:25]} Nc6 {[%emt 0:01:29]} 9. Bd3 {[%emt 0:01:49]} Nxg3 {[%emt 0:01:12]} 10. hxg3 {[%emt 0:00:06]} Bd7 {[%emt 0:03:12]} 11. dxc5 {[%emt 0:05:52]} Bxc5 {[%emt 0:01:08]} 12. Qe2 {[%emt 0:00:25]} a5 {[%emt 0:06:10]} 13. g4 {[%emt 0:03:51]} Ne7 {[%emt 0:06:50]} 14. Rb1 {[%emt 0:08:46]} a4 {[%emt 0:14:04]} 15. b4 {[%emt 0:09:07]} axb3 {[%emt 0:00:20]} 16. axb3 {[%emt 0:00:05]} Qc7 {[%emt 0:01:01]} 17. g5 {[%emt 0:15:57]} Ng6 {[%emt 0:05:52]} 18. O-O {[%emt 0:14:38]} O-O {[%emt 0:02:53]} 19. g3 {[%emt 0:05:41]} Bb6 {[%emt 0:03:17]} 20. Bb2 {[%emt 0:09:23]} Rfd8 {[%emt 0:03:48]} 21. Ra1 {[%emt 0:05:03]} Be8 {[%emt 0:11:23]} 22. Kg2 {[%emt 0:04:43]} Qe7 {[%emt 0:02:46]} 23. Rxa8 {[%emt 0:04:45]} Rxa8 {[%emt 0:00:19]} 24. Bc1 {[%emt 0:01:35]} Qc7 {[%emt 0:02:17]} 25. Bxg6 {[%emt 0:06:20]} hxg6 {[%emt 0:01:08]} 26. Be3 {[%emt 0:00:05]} Rc8 {[%emt 0:04:13]} 27. Rc1 {[%emt 0:00:50]} Bc5 {[%emt 0:08:27]} 28. Bxc5 {[%emt 0:00:36]} Qxc5 {[%emt 0:00:01]} 29. Nd4 {[%emt 0:00:25]} Bd7 {[%emt 0:01:36]} 30. Qd3 {[%emt 0:00:36]} Qe7 {[%emt 0:01:44]} 31. Qe3 {[%emt 0:00:27]} Qc5 {[%emt 0:01:13]} 32. Qd2 {[%emt 0:00:12]} Bb5 {[%emt 0:03:18]} 33. Rc2 {[%emt 0:00:36]} Bd7 {[%emt 0:00:46]} 34. Kh2 {[%emt 0:00:25]} Qc7 {[%emt 0:02:00]} 35. Qe3 {[%emt 0:00:28]} Qc5 {[%emt 0:01:21]} 36. Kg2 {[%emt 0:00:10]} Bb5 {[%emt 0:00:50]} 37. Qd2 {[%emt 0:01:17]} Bd7 {[%emt 0:00:11]} 38. Rc1 {[%emt 0:00:14]} Qc7 {[%emt 0:00:28]} 39. Qe2 {[%emt 0:00:32]} Qc5 {[%emt 0:00:18]} 40. Kg1 {[%emt 0:01:44]} Qe7 {[%emt 0:01:56]} 41. Qe3 {[%emt 0:11:13]} Qc5 {[%emt 0:00:19]} 42. Kg2 {[%emt 0:00:18]} Be8 {[%emt 0:05:53]} 43. Ra1 {[%emt 0:04:57]} Kf8 {[%emt 0:02:19]} 44. Ra8 {[%emt 0:04:43]} Kg8 {[%emt 0:02:02]} 45. Rxc8 {[%emt 0:02:33]} Qxc8 {[%emt 0:00:02]} 46. Qe1 {[%emt 0:01:25]} Qa8 {[%emt 0:01:37]} 47. Qb1 {[%emt 0:01:06]} Qa6 {[%emt 0:01:37]} 48. Qf1 {[%emt 0:03:48]} Qa5 {[%emt 0:02:05]} 49. Qd3 {[%emt 0:00:12]} Qc7 {[%emt 0:00:18]} 50. Qe3 {[%emt 0:00:51]} Qc5 {[%emt 0:01:02]} 51. Qd3 {[%emt 0:00:00]} Qc7 {[%emt 0:00:05]} 52. Qe3 {[%emt 0:03:38]} Qc5 {[%emt 0:00:02]} 1/2-1/2

[Event "AUT-ch Open 2020"]
[Site "Graz"]
[Date "2020.02.14"]
[Round "1.30"]
[White "Murray, David"]
[Black "Handler, Lukas"]
[Result "0-1"]
[ECO "C14"]
[WhiteElo "2145"]
[BlackElo "2422"]
[Annotator "RC"]
[PlyCount "152"]
[EventDate "2020.02.14"]
[EventType "swiss"]
[EventCountry "AUT"]
[SourceTitle "playchess.com"]
[Source "ChessBase"]
[SourceQuality "1"]
[TimeControl "40/5400+30:1800+30"]

1. e4 {[%emt 0:00:00]} e6 {[%emt 0:00:00]} 2. d4 {[%emt 0:00:00]} d5 {[%emt 0:00:00]} 3. Nc3 {[%emt 0:00:10]} Nf6 {[%emt 0:00:00]} 4. Bg5 {[%emt 0:00:42]} Be7 {[%emt 0:02:57]} 5. e5 {[%emt 0:00:16]} Nfd7 {[%emt 0:00:07]} 6. Bxe7 {[%emt 0:01:37]} Qxe7 {[%emt 0:00:18]} 7. f4 {[%emt 0:01:51]} a6 {[%emt 0:00:24]} 8. Nf3 {[%emt 0:02:34]} c5 {[%emt 0:01:11]} 9. dxc5 {[%emt 0:03:31]} Nxc5 {[%emt 0:02:45]} 10. Bd3 {[%emt 0:01:39]} Nc6 {[%emt 0:02:09]} 11. O-O {[%emt 0:02:24]} Bd7 {[%emt 0:04:40]} 12. Qd2 {[%emt 0:03:43]} h6 {[%emt 0:06:23]} 13. Qf2 {[%emt 0:04:13]} Nxd3 {[%emt 0:22:43]} 14. cxd3 {[%emt 0:00:27]} Qb4 {[%emt 0:01:44]} 15. f5 {[%emt 0:05:56]} Rc8 {[%emt 0:26:24]} 16. Rac1 {[%emt 0:15:57]} Qa5 {[%emt 0:02:47]} 17. a3 {[%emt 0:05:03]} exf5 {[%emt 0:05:42]} 18. b4 {[%emt 0:04:37]} Qxa3 {[%emt 0:04:38]} 19. Nxd5 {[%emt 0:01:21]} Be6 {[%emt 0:04:13]} 20. Rc3 {[%emt 0:13:24]} Qa4 {[%emt 0:00:24]} 21. Nb6 {[%emt 0:00:37]} Qxb4 {[%emt 0:01:19]} 22. Nxc8 {[%emt 0:02:02]} Qxc3 {[%emt 0:00:21]} 23. Nd6+ {[%emt 0:00:35]} Kf8 {[%emt 0:01:15]} 24. Qe3 {[%emt 0:05:24]} g5 {[%emt 0:03:08]} 25. Nxb7 {[%emt 0:03:45]} g4 {[%emt 0:03:20]} 26. Nh4 {[%emt 0:04:32]} Qxe5 {[%emt 0:00:57]} 27. Nxf5 {[%emt 0:01:53]} Qxe3+ {[%emt 0:00:41]} 28. Nxe3 {[%emt 0:00:07]} Kg7 {[%emt 0:00:32]} 29. Nc5 {[%emt 0:01:44]} Bc8 {[%emt 0:00:19]} 30. Rf4 {[%emt 0:06:10]} h5 {[%emt 0:01:03]} 31. d4 {[%emt 0:00:41]} Rd8 {[%emt 0:00:46]} 32. d5 {[%emt 0:00:34]} Na7 {[%emt 0:00:50]} 33. Nxa6 {[%emt 0:04:51]} Bxa6 {[%emt 0:01:00]} 34. Ra4 {[%emt 0:00:07]} Bb7 {[%emt 0:00:20]} 35. Rxa7 {[%emt 0:00:09]} Bxd5 {[%emt 0:00:05]} 36. Ra5 {[%emt 0:01:30]} Be6 {[%emt 0:01:25]} 37. Rxh5 {[%emt 0:01:00]} Kg6 {[%emt 0:00:18]} 38. Rc5 {[%emt 0:01:23]} Rd3 {[%emt 0:00:55]} 39. Kf2 {[%emt 0:01:03]} f5 {[%emt 0:00:07]} 40. Ke2 {[%emt 0:01:03]} Ra3 {[%emt 0:00:07]} 41. g3 {[%emt 0:05:43]} Bd7 {[%emt 0:02:23]} 42. Kf2 {[%emt 0:04:36]} Ra2+ {[%emt 0:02:39]} 43. Rc2 {[%emt 0:00:19]} Ra1 {[%emt 0:00:31]} 44. Nd5 {[%emt 0:00:56]} Ba4 {[%emt 0:04:15]} 45. Rd2 {[%emt 0:01:13]} Rh1 {[%emt 0:03:10]} 46. Kg2 {[%emt 0:01:12]} Rc1 {[%emt 0:01:34]} 47. Kf2 {[%emt 0:00:48]} Rh1 {[%emt 0:09:25]} 48. Kg2 {[%emt 0:02:25]} Ra1 {[%emt 0:01:24]} 49. Kf2 {[%emt 0:00:11]} Kf7 {[%emt 0:00:25]} 50. Ke3 {[%emt 0:01:36]} Bc6 {[%emt 0:07:00]} 51. Kf4 {[%emt 0:02:06]} Ra5 {[%emt 0:01:38]} 52. Ne3 {[%emt 0:03:59]} Ke6 {[%emt 0:00:56]} 53. Nc4 {[%emt 0:01:28]} Rc5 {[%emt 0:00:09]} 54. Re2+ {[%emt 0:01:38]} Kf6 {[%emt 0:00:19]} 55. Ne3 {[%emt 0:02:16]} Ra5 {[%emt 0:00:52]} 56. Rc2 {[%emt 0:00:46]} Bd7 {[%emt 0:00:45]} 57. Nc4 {[%emt 0:01:24]} Ra4 {[%emt 0:00:41]} 58. Ke3 {[%emt 0:00:15]} Be6 {[%emt 0:00:13]} 59. Nd2 {[%emt 0:03:10]} Ra1 {[%emt 0:00:29]} 60. Kf2 {[%emt 0:01:02]} Bd5 {[%emt 0:00:31]} 61. Nf1 {[%emt 0:00:51]} Be4 {[%emt 0:00:25]} 62. Rd2 {[%emt 0:01:26]} Ke5 {[%emt 0:00:30]} 63. Rb2 {[%emt 0:02:23]} Bd3 {[%emt 0:00:36]} 64. Nd2 {[%emt 0:00:12]} Rh1 {[%emt 0:00:45]} 65. Kg2 {[%emt 0:00:12]} Rd1 {[%emt 0:00:41]} 66. h4 {[%emt 0:00:48]} Kd4 {[%emt 0:01:00]} 67. h5 {[%emt 0:01:10]} Ke3 {[%emt 0:00:57]} 68. h6 {[%emt 0:00:16]} Ra1 {[%emt 0:00:30]} 69. h7 {[%emt 0:00:46]} Ra8 {[%emt 0:00:05]} 70. Nb1 {[%emt 0:00:44]} Rh8 {[%emt 0:00:09]} 71. Nc3 {[%emt 0:00:19]} Rxh7 {[%emt 0:00:13]} 72. Nd5+ {[%emt 0:00:42]} Kd4 {[%emt 0:00:12]} 73. Rd2 {[%emt 0:00:21]} Rd7 {[%emt 0:01:23]} 74. Nf4 {[%emt 0:00:29]} Ke3 {[%emt 0:00:23]} 75. Ra2 {[%emt 0:00:39]} Be4+ {[%emt 0:00:11]} 76. Kh2 {[%emt 0:00:31]} Rh7+ {[%emt 0:00:08]} 0-1

[Event "AUT-ch Open 2020"]
[Site "Graz"]
[Date "2020.02.14"]
[Round "1.33"]
[White "Kosakowski, Jakub"]
[Black "Froewis, Annika"]
[Result "1-0"]
[ECO "C77"]
[WhiteElo "2413"]
[BlackElo "2121"]
[Annotator "RC"]
[PlyCount "117"]
[EventDate "2020.02.14"]
[EventType "swiss"]
[EventCountry "AUT"]
[SourceTitle "playchess.com"]
[Source "ChessBase"]
[SourceQuality "1"]
[TimeControl "40/5400+30:1800+30"]

1. e4 {[%emt 0:00:00]} e5 {[%emt 0:00:00]} 2. Nf3 {[%emt 0:00:03]} Nc6 {[%emt 0:00:00]} 3. Bb5 {[%emt 0:00:59]} a6 {[%emt 0:00:04]} 4. Ba4 {[%emt 0:00:19]} Nf6 {[%emt 0:00:10]} 5. Bxc6 {[%emt 0:06:23]} dxc6 {[%emt 0:01:00]} 6. d3 {[%emt 0:00:10]} Bd6 {[%emt 0:02:40]} 7. Nbd2 {[%emt 0:00:11]} Be6 {[%emt 0:12:18]} 8. b3 {[%emt 0:03:04]} Nd7 {[%emt 0:02:54]} 9. Bb2 {[%emt 0:00:15]} c5 {[%emt 0:07:59]} 10. Qe2 {[%emt 0:02:45]} Qe7 {[%emt 0:03:54]} 11. g3 {[%emt 0:04:50]} f6 {[%emt 0:02:44]} 12. Nh4 {[%emt 0:00:17]} g6 {[%emt 0:01:19]} 13. Ng2 {[%emt 0:02:47]} Nb8 {[%emt 0:05:01]} 14. Ne3 {[%emt 0:04:29]} Nc6 {[%emt 0:02:03]} 15. c3 {[%emt 0:00:15]} Qf7 {[%emt 0:02:01]} 16. Rf1 {[%emt 0:04:00]} Bh3 {[%emt 0:03:24]} 17. Rg1 {[%emt 0:00:13]} Be6 {[%emt 0:00:36]} 18. Ndc4 {[%emt 0:08:36]} O-O-O {[%emt 0:10:03]} 19. O-O-O {[%emt 0:00:35]} Bf8 {[%emt 0:08:40]} 20. f4 {[%emt 0:01:37]} Bh6 {[%emt 0:03:27]} 21. Rgf1 {[%emt 0:00:14]} Qd7 {[%emt 0:04:42]} 22. Kb1 {[%emt 0:01:19]} b5 {[%emt 0:06:20]} 23. Na3 {[%emt 0:00:17]} Rhf8 {[%emt 0:04:33]} 24. Nac2 {[%emt 0:00:33]} Qe7 {[%emt 0:04:18]} 25. f5 {[%emt 0:06:43]} Bf7 {[%emt 0:02:47]} 26. Ng4 {[%emt 0:04:43]} Bg7 {[%emt 0:00:23]} 27. Ba3 {[%emt 0:12:11]} Kb7 {[%emt 0:05:44]} 28. Nge3 {[%emt 0:14:23]} g5 {[%emt 0:01:40]} 29. Qf3 {[%emt 0:00:41]} Ka7 {[%emt 0:02:12]} 30. Nd5 {[%emt 0:00:31]} Bxd5 {[%emt 0:01:12]} 31. exd5 {[%emt 0:00:05]} b4 {[%emt 0:00:37]} 32. dxc6 {[%emt 0:01:26]} bxa3 {[%emt 0:00:05]} 33. Nxa3 {[%emt 0:00:05]} Qd6 {[%emt 0:01:02]} 34. Nc4 {[%emt 0:00:45]} Qd5 {[%emt 0:00:22]} 35. Qe4 {[%emt 0:00:07]} h5 {[%emt 0:00:40]} 36. Kc2 {[%emt 0:00:21]} Rh8 {[%emt 0:00:30]} 37. h3 {[%emt 0:00:32]} h4 {[%emt 0:00:30]} 38. g4 {[%emt 0:00:09]} Rhe8 {[%emt 0:00:28]} 39. a4 {[%emt 0:00:22]} Bf8 {[%emt 0:00:32]} 40. Ne3 {[%emt 0:00:18]} Qd6 {[%emt 0:00:33]} 41. Rb1 {[%emt 0:30:16]} Rb8 {[%emt 0:04:38]} 42. Rfe1 {[%emt 0:00:00]} Red8 {[%emt 0:05:28]} 43. Nc4 {[%emt 0:00:00]} Qd5 {[%emt 0:02:30]} 44. Rbd1 {[%emt 0:00:00]} Rd6 {[%emt 0:08:05]} 45. Qxd5 {[%emt 0:00:00]} Rxd5 {[%emt 0:00:02]} 46. d4 {[%emt 0:00:00]} cxd4 {[%emt 0:01:38]} 47. cxd4 {[%emt 0:00:00]} exd4 {[%emt 0:02:13]} 48. Rd3 {[%emt 0:00:00]} Rc5 {[%emt 0:04:43]} 49. Re6 {[%emt 0:00:00]} Bd6 {[%emt 0:00:57]} 50. Rxf6 {[%emt 0:00:00]} Rxc6 {[%emt 0:02:11]} 51. Re6 {[%emt 0:00:00]} Rb4 {[%emt 0:01:32]} 52. Rxd4 {[%emt 0:00:00]} Rcb6 {[%emt 0:01:23]} 53. Rdxd6 {[%emt 0:00:00]} Rxc4+ {[%emt 0:01:02]} 54. bxc4 {[%emt 0:00:00]} cxd6 {[%emt 0:00:05]} 55. f6 {[%emt 0:00:00]} Rb4 {[%emt 0:00:41]} 56. Kd3 {[%emt 0:00:32]} Rb3+ {[%emt 0:00:50]} 57. Ke4 {[%emt 0:00:06]} d5+ {[%emt 0:00:29]} 58. cxd5 {[%emt 0:00:07]} Ra3 {[%emt 0:00:33]} 59. f7 {[%emt 0:00:09]} 1-0

[Event "AUT-ch Open 2020"]
[Site "Graz"]
[Date "2020.02.14"]
[Round "1.34"]
[White "Wallner, Dieter"]
[Black "Schwabeneder, Florian"]
[Result "0-1"]
[ECO "A45"]
[WhiteElo "2116"]
[BlackElo "2412"]
[Annotator "RC"]
[PlyCount "70"]
[EventDate "2020.02.14"]
[EventType "swiss"]
[EventCountry "AUT"]
[SourceTitle "playchess.com"]
[Source "ChessBase"]
[SourceQuality "1"]
[TimeControl "40/5400+30:1800+30"]

1. d4 {[%emt 0:00:00]} Nf6 {[%emt 0:00:00]} 2. Bf4 {[%emt 0:00:00]} d5 {[%emt 0:01:32]} 3. e3 {[%emt 0:01:27]} e6 {[%emt 0:00:09]} 4. Nd2 {[%emt 0:00:38]} c5 {[%emt 0:00:12]} 5. c3 {[%emt 0:00:47]} Bd6 {[%emt 0:00:24]} 6. Bg3 {[%emt 0:02:07]} Qc7 {[%emt 0:00:33]} 7. Ngf3 {[%emt 0:04:44]} Nbd7 {[%emt 0:01:46]} 8. Bd3 {[%emt 0:03:45]} O-O {[%emt 0:00:28]} 9. Qe2 {[%emt 0:06:21]} e5 {[%emt 0:02:37]} 10. Nxe5 {[%emt 0:05:47]} Nxe5 {[%emt 0:00:24]} 11. dxe5 {[%emt 0:00:12]} Bxe5 {[%emt 0:00:09]} 12. Bxe5 {[%emt 0:05:23]} Qxe5 {[%emt 0:00:10]} 13. h3 {[%emt 0:02:48]} Bd7 {[%emt 0:16:22]} 14. O-O {[%emt 0:03:40]} Rfe8 {[%emt 0:06:12]} 15. Bb5 {[%emt 0:05:34]} Rad8 {[%emt 0:04:05]} 16. Rad1 {[%emt 0:03:10]} Qe6 {[%emt 0:09:43]} 17. Nf3 {[%emt 0:10:56]} Bc6 {[%emt 0:05:12]} 18. Bxc6 {[%emt 0:04:35]} Qxc6 {[%emt 0:00:49]} 19. Qc2 {[%emt 0:02:47]} b5 {[%emt 0:03:41]} 20. a4 {[%emt 0:04:26]} Rb8 {[%emt 0:08:33]} 21. axb5 {[%emt 0:05:34]} Qxb5 {[%emt 0:01:06]} 22. Rb1 {[%emt 0:00:52]} c4 {[%emt 0:17:36]} 23. Qf5 {[%emt 0:04:04]} Rb6 {[%emt 0:01:34]} 24. Rfd1 {[%emt 0:00:27]} g6 {[%emt 0:03:44]} 25. Qf4 {[%emt 0:08:54]} Kg7 {[%emt 0:04:33]} 26. Nd4 {[%emt 0:04:44]} Qc5 {[%emt 0:00:19]} 27. f3 {[%emt 0:04:53]} h6 {[%emt 0:03:09]} 28. g4 {[%emt 0:00:59]} Nd7 {[%emt 0:02:13]} 29. g5 {[%emt 0:01:51]} hxg5 {[%emt 0:01:13]} 30. Qxg5 {[%emt 0:00:11]} Re5 {[%emt 0:00:23]} 31. Qd8 {[%emt 0:01:30]} Qd6 {[%emt 0:00:40]} 32. Kf2 {[%emt 0:00:30]} Rb8 {[%emt 0:02:03]} 33. Qh4 {[%emt 0:00:39]} Nc5 {[%emt 0:00:36]} 34. Qg3 {[%emt 0:00:39]} Qf6 {[%emt 0:01:10]} 35. Nc6 {[%emt 0:00:17]} Ne4+ {[%emt 0:00:09]} 0-1